fUST/lending_fUST_20260425
["ID","MTS","AMOUNT","RATE_DAILY","PERIOD"]
[421103535,1777046462478,-4935.37447876,9.9e-05,2]
[421103571,1777047032072,-571.20990806,9.604e-05,2]
[421103575,1777047032128,-4428.79009194,9.604e-05,2]
[421103576,1777047032139,-554.0,9.604e-05,2]
[421103577,1777047032149,-300.0,9.701e-05,2]
[421103578,1777047032160,-195.04417011,9.701e-05,2]
[421103579,1777047032177,-2135.82265924,0.0001,2]
[421103580,1777047032189,-1660.58024674,0.0001,2]
[421103581,1777047032200,-300.0,0.00010199,2]
[421103582,1777047032210,-300.0,0.00010199,2]
[421103583,1777047032221,-300.0,0.00010199,2]
[421103584,1777047032231,-300.0,0.00010199,2]
[421103585,1777047032240,-300.0,0.00010199,2]
[421103586,1777047032250,-300.0,0.00010199,2]
[421103587,1777047032261,-300.0,0.00010199,2]
[421103588,1777047032271,-300.0,0.00010199,2]
[421103589,1777047032286,-300.0,0.00010199,2]
[421103590,1777047032299,-300.0,0.00010199,2]
[421103591,1777047032311,-300.0,0.00010199,2]
[421103592,1777047032321,-300.0,0.00010199,2]
[421103593,1777047032331,-300.0,0.00010199,2]
[421103594,1777047032341,-300.0,0.00010199,2]
[421103595,1777047032351,-300.0,0.00010199,2]
[421103596,1777047032361,-600.0,0.00010402,2]
[421103597,1777047032371,-720.0,0.00011442,2]
[421103598,1777047032382,-230.15212073,0.00011701,2]
[421103599,1777047032393,-864.0,0.00012586,2]
[421103600,1777047032405,-266.44242449,0.00012818,2]
[421103601,1777047032416,-4339.04585114,0.0001283,2]
[421103602,1777047032427,-500.0,0.00013694,2]
[421103603,1777047032436,-500.0,0.00013694,2]
[421103604,1777047032446,-1000.0,0.00013699,2]
[421103605,1777047032457,-265.26007135,0.00013702,2]
[421103606,1777047032467,-1000.0,0.00013845,2]
[421103607,1777047032478,-299.999,0.000151,2]
[421103608,1777047032489,-1000.0,0.0001523,2]
[421103609,1777047032502,-244.0,0.0001523,2]
[421103610,1777047032513,-300.36802197,0.00015702,2]
[421103611,1777047032523,-783.66820456,0.000158,2]
[421103612,1777047032533,-4161.15572785,0.000158,2]
[421103613,1777047032544,-1950.40619561,0.000158,2]
[421103614,1777047032554,-2649.34013399,0.000158,2]
[421103615,1777047032565,-3117.14418666,0.000158,2]
[421103616,1777047032576,-3405.24793088,0.000158,2]
[421103617,1777047032587,-151.80568945,0.00015819,2]
[421103618,1777047032597,-21741.98736094,0.00015829,2]
[421103649,1777047038504,-399.44560014,0.00015829,2]
[421103665,1777047040667,-27396.04665116,0.00015829,2]
[421103666,1777047040679,-151.80568944,0.000159,2]
[421103667,1777047040690,-180.0,0.00015919,2]
[421103668,1777047040700,-151.0,0.00015919,2]
[421103669,1777047040711,-151.0,0.00015919,2]
[421103670,1777047040722,-151.0,0.00015919,2]
[421103671,1777047040732,-151.0,0.00015919,2]
[421103672,1777047040743,-151.0,0.00015919,2]
[421103673,1777047040754,-151.0,0.00015919,2]
[421103674,1777047040765,-151.0,0.00015919,2]
[421103675,1777047040775,-151.0,0.00015919,2]
[421103676,1777047040786,-151.0,0.00015919,2]
[421103677,1777047040796,-151.0,0.00015919,2]
[421103678,1777047040807,-151.0,0.00015919,2]
[421103679,1777047040818,-151.0,0.00015919,2]
[421103680,1777047040828,-151.0,0.00015919,2]
[421103681,1777047040839,-151.0,0.00015919,2]
[421103682,1777047040850,-151.0,0.00015919,2]
[421103683,1777047040860,-151.0,0.00015919,2]
[421103684,1777047040871,-151.0,0.00015919,2]
[421103685,1777047040881,-151.0,0.00015919,2]
[421103686,1777047040892,-151.0,0.00015919,2]
[421103687,1777047040902,-151.0,0.00015919,2]
[421103688,1777047040913,-3000.0,0.00016,2]
[421103689,1777047040923,-3000.0,0.0001601,2]
[421103690,1777047040934,-3000.0,0.0001602,2]
[421103691,1777047040945,-3000.0,0.0001603,2]
[421103692,1777047040955,-3000.0,0.0001604,2]
[421103693,1777047040966,-3000.0,0.0001605,2]
[421103694,1777047040977,-3000.0,0.0001606,2]
[421103695,1777047040987,-2396.36009051,0.0001607,2]
[421103746,1777047043337,-603.63990949,0.0001607,2]
[421103747,1777047043348,-3000.0,0.0001608,2]
[421103748,1777047043358,-3000.0,0.0001609,2]
[421103749,1777047043367,-3000.0,0.000161,2]
[421103750,1777047043377,-3000.0,0.0001611,2]
[421103751,1777047043386,-3000.0,0.0001612,2]
[421103752,1777047043395,-1492.93034776,0.0001613,2]
[421103767,1777047046851,-1507.06965224,0.0001613,2]
[421103768,1777047046861,-3000.0,0.0001614,2]
[421103769,1777047046871,-3000.0,0.0001615,2]
[421103770,1777047046880,-3000.0,0.0001616,2]
[421103771,1777047046889,-3000.0,0.0001617,2]
[421103772,1777047046899,-3000.0,0.0001618,2]
[421103773,1777047046908,-3000.0,0.0001619,2]
[421103774,1777047046918,-3000.0,0.000162,2]
[421103775,1777047046927,-3000.0,0.0001621,2]
[421103776,1777047046936,-3000.0,0.0001622,2]
[421103777,1777047046946,-3000.0,0.0001623,2]
[421103778,1777047046955,-3000.0,0.0001624,2]
[421103779,1777047046964,-3000.0,0.0001625,2]
[421103780,1777047046973,-3000.0,0.0001626,2]
[421103781,1777047046983,-3000.0,0.0001627,2]
[421103782,1777047046992,-2541.14272577,0.0001628,2]
[421103816,1777048232504,-5000.0,0.00011717,2]
[421103817,1777048232514,-300.0,0.00011835,2]
[421103818,1777048232524,-300.0,0.00011835,2]
[421103819,1777048232533,-300.0,0.00011835,2]
[421103820,1777048232543,-300.0,0.00011835,2]
[421103821,1777048232553,-1200.0,0.00011835,2]
[421103822,1777048232562,-4003.8345,0.00011836,2]
[421103823,1777048232574,-996.1655,0.00011836,2]
[421103824,1777048232584,-176.56372672,0.00012009,2]
[421103825,1777048232593,-195.62768243,0.00012139,2]
[421103826,1777048232603,-97.94726872,0.00012479,2]
[421103827,1777048232618,-57.15273128,0.00012479,2]
[421103828,1777048232628,-442.11446693,0.00012479,2]
[421103829,1777048232637,-161.27,0.00012534,2]
[421103830,1777048232647,-1398.88962671,0.0001283,2]
[421103831,1777048232656,-300.0,0.00012955,2]
[421103832,1777048232666,-300.0,0.00012955,2]
[421103833,1777048232676,-300.0,0.00012955,2]
[421103834,1777048232685,-300.0,0.00012955,2]
[421103835,1777048232695,-300.0,0.00012955,2]
[421103836,1777048232704,-300.0,0.00012955,2]
[421103837,1777048232714,-300.0,0.00012955,2]
[421103838,1777048232723,-300.0,0.00012955,2]
[421103839,1777048232733,-300.0,0.00012955,2]
[421103840,1777048232743,-300.0,0.00012955,2]
[421103841,1777048232752,-300.0,0.00012955,2]
[421103842,1777048232761,-300.0,0.00012955,2]
[421103843,1777048232771,-300.0,0.00012955,2]
[421103844,1777048232780,-300.0,0.00012955,2]
[421103845,1777048232792,-300.0,0.00012955,2]
[421103846,1777048232802,-500.0,0.00013698,2]
[421103847,1777048232812,-500.0,0.00013698,2]
[421103849,1777048232821,-1000.0,0.00013699,2]
[421103850,1777048232830,-230.84066527,0.00014139,2]
[421103852,1777048232840,-487.817,0.00014702,2]
[421103854,1777048232849,-173.5266117,0.00015024,2]
[421103856,1777048232858,-26517.96527648,0.00015025,2]
[421103863,1777048232912,-964.89145865,0.00015025,2]
[421103954,1777048239598,-195.62768243,0.00011776,2]
[421103955,1777048239607,-230.84066527,0.00013776,2]
[421103956,1777048239617,-2557.77625157,0.00014874,2]
[421103957,1777048239626,-158.76911385,0.00015024,2]
[421103958,1777048239636,-500.0,0.00015024,2]
[421103959,1777048239645,-500.0,0.00015024,2]
[421103960,1777048239655,-500.0,0.00015024,2]
[421103961,1777048239664,-324.70274605,0.00015024,2]
[421103962,1777048239676,-175.29725395,0.00015024,2]
[421103963,1777048239685,-500.0,0.00015024,2]
[421103964,1777048239694,-500.0,0.00015024,2]
[421103965,1777048239703,-500.0,0.00015024,2]
[421103966,1777048239712,-500.0,0.00015024,2]
[421103967,1777048239722,-25.35766985,0.00015024,2]
[421103968,1777048239734,-474.64233015,0.00015024,2]
[421103969,1777048239744,-305.35766985,0.00015024,2]
[421103970,1777048239755,-194.64233015,0.00015024,2]
[421103971,1777048239765,-331.36882237,0.00015024,2]
[421103972,1777048239774,-500.0,0.00015024,2]
[421103973,1777048239783,-259.08893021,0.00015024,2]
[421103979,1777048241074,-240.91106979,0.00015024,2]
[421103980,1777048241084,-500.0,0.00015024,2]
[421103981,1777048241093,-500.0,0.00015024,2]
[421103982,1777048241102,-500.0,0.00015024,2]
[421103983,1777048241111,-472.14215193,0.00015024,2]
[421103984,1777048241120,-500.0,0.00015024,2]
[421103985,1777048241130,-500.0,0.00015024,2]
[421103986,1777048241139,-500.0,0.00015024,2]
[421103987,1777048241148,-500.0,0.00015024,2]
[421103988,1777048241157,-500.0,0.00015024,2]
[421103989,1777048241166,-500.0,0.00015024,2]
[421103990,1777048241176,-500.0,0.00015024,2]
[421103991,1777048241185,-500.0,0.00015024,2]
[421103992,1777048241194,-500.0,0.00015024,2]
[421103993,1777048241203,-500.0,0.00015024,2]
[421103994,1777048241212,-500.0,0.00015024,2]
[421103995,1777048241221,-500.0,0.00015024,2]
[421103996,1777048241230,-500.0,0.00015024,2]
[421103997,1777048241239,-500.0,0.00015024,2]
[421103998,1777048241249,-500.0,0.00015024,2]
[421103999,1777048241258,-351.44700184,0.00015024,2]
[421104000,1777048241269,-20.33914565,0.00015024,2]
[421104001,1777048241278,-500.0,0.00015024,2]
[421104002,1777048241287,-500.0,0.00015024,2]
[421104003,1777048241297,-500.0,0.00015024,2]
[421104004,1777048241306,-500.0,0.00015024,2]
[421104005,1777048241315,-500.0,0.00015024,2]
[421104006,1777048241324,-500.0,0.00015024,2]
[421104007,1777048241333,-500.0,0.00015024,2]
[421104008,1777048241343,-500.0,0.00015024,2]
[421104009,1777048241353,-500.0,0.00015024,2]
[421104010,1777048241362,-500.0,0.00015024,2]
[421104011,1777048241372,-500.0,0.00015024,2]
[421104012,1777048241381,-500.0,0.00015024,2]
[421104013,1777048241391,-500.0,0.00015024,2]
[421104014,1777048241400,-500.0,0.00015024,2]
[421104015,1777048241409,-500.0,0.00015024,2]
[421104016,1777048241419,-500.0,0.00015024,2]
[421104017,1777048241428,-500.0,0.00015024,2]
[421104018,1777048241438,-500.0,0.00015024,2]
[421104019,1777048241447,-500.0,0.00015024,2]
[421104020,1777048241456,-500.0,0.00015024,2]
[421104021,1777048241466,-500.0,0.00015024,2]
[421104022,1777048241475,-500.0,0.00015024,2]
[421104023,1777048241484,-500.0,0.00015024,2]
[421104024,1777048241494,-500.0,0.00015024,2]
[421104025,1777048241503,-500.0,0.00015024,2]
[421104026,1777048241512,-500.0,0.00015024,2]
[421104027,1777048241522,-500.0,0.00015024,2]
[421104028,1777048241532,-500.0,0.00015024,2]
[421104029,1777048241541,-636.0,0.00015024,2]
[421104030,1777048241551,-23733.6853829,0.00015025,2]
[421104031,1777048241570,-4305.8,0.00015025,2]
[421104048,1777048243599,-1417.28160093,0.00015025,2]
[421104091,1777048247060,-1257.029997,0.00015025,2]
[421104092,1777048247120,-9174.83275232,0.00015025,2]
[421104093,1777048300577,-390.253,0.00014724,2]
[421104094,1777048300600,-390.253,0.00014875,2]
[421104095,1777048300612,-309.03443166,0.00014875,2]
[421104135,1777049432631,-5000.0,0.00013027,2]
[421104137,1777049432640,-605.0,0.00013027,2]
[421104138,1777049432649,-193.80894852,0.00013427,2]
[421104140,1777049432658,-205.71899203,0.00013698,2]
[421104142,1777049432667,-1000.0,0.00013699,2]
[421104144,1777049432677,-300.0,0.00013832,2]
[421104146,1777049432687,-300.0,0.00013832,2]
[421104148,1777049432696,-300.0,0.00013832,2]
[421104150,1777049432705,-300.0,0.00013832,2]
[421104151,1777049432714,-300.0,0.00013832,2]
[421104153,1777049432723,-300.0,0.00013832,2]
[421104155,1777049432733,-300.0,0.00013832,2]
[421104157,1777049432742,-300.0,0.00013832,2]
[421104159,1777049432751,-300.0,0.00013832,2]
[421104161,1777049432760,-300.0,0.00013832,2]
[421104163,1777049432770,-300.0,0.00013832,2]
[421104165,1777049432779,-300.0,0.00013832,2]
[421104167,1777049432788,-300.0,0.00013832,2]
[421104168,1777049432798,-300.0,0.00013832,2]
[421104169,1777049432807,-300.0,0.00013832,2]
[421104170,1777049432816,-258.84,0.00014001,2]
[421104171,1777049432825,-201.89,0.00014127,2]
[421104172,1777049432835,-223.48,0.00014393,2]
[421104173,1777049432844,-670.11644321,0.00014625,2]
[421104174,1777049432853,-446.78372054,0.00014625,2]
[421104175,1777049432862,-446.78372052,0.00014638,2]
[421104176,1777049432871,-446.78372052,0.0001465,2]
[421104177,1777049432883,-446.78372052,0.00014663,2]
[421104178,1777049432892,-1267.34828218,0.00014675,2]
[421104179,1777049432904,-2377.83954476,0.00014675,2]
[421104180,1777049432914,-446.78372052,0.00014675,2]
[421104181,1777049432924,-500.0,0.00014721,2]
[421104182,1777049432933,-6703.70595251,0.00014723,2]
[421104183,1777049432969,-500.0,0.00014721,2]
[421104184,1777049432979,-500.0,0.00014721,2]
[421104185,1777049432988,-36073.78427462,0.00014723,2]
[421104186,1777049433000,-2994.07694886,0.00014723,2]
[421104187,1777049433011,-3760.67818282,0.00014723,2]
[421104188,1777049433022,-913.64676378,0.00014723,2]
[421104189,1777049433041,-508.42489236,0.00014721,2]
[421104190,1777049433051,-500.0,0.00014721,2]
[421104191,1777049433060,-3.84950905,0.00014723,2]
[421104192,1777049433071,-37131.62965866,0.00014723,2]
[421104193,1777049433080,-395662.14743692,0.00014725,2]
[421104194,1777049433091,-440.41335325,0.00014725,2]
[421104195,1777049433327,-3294.6447545,0.00014725,2]
[421104196,1777049433347,-500.0,0.00014721,2]
[421104197,1777049433356,-500.0,0.00014721,2]
[421104198,1777049433366,-37506.14888406,0.00014725,2]
[421104199,1777049433377,-4866.84819384,0.00014725,2]
[421104200,1777049433388,-429.39541939,0.00014725,2]
[421104220,1777049439194,-4003.8345,0.00014249,2]
[421104221,1777049439203,-500.0,0.00014721,2]
[421104222,1777049439213,-500.0,0.00014721,2]
[421104223,1777049439223,-500.0,0.00014721,2]
[421104224,1777049439233,-500.0,0.00014721,2]
[421104225,1777049439243,-500.0,0.00014721,2]
[421104226,1777049439252,-500.0,0.00014721,2]
[421104227,1777049439262,-500.0,0.00014721,2]
[421104228,1777049439271,-500.0,0.00014721,2]
[421104229,1777049439280,-500.0,0.00014721,2]
[421104230,1777049439289,-500.0,0.00014721,2]
[421104231,1777049439299,-10027.9155,0.00014725,2]
[421104383,1777049447106,-188.49,0.00013802,2]
[421104384,1777049447117,-235.62,0.00014229,2]
[421104385,1777049447127,-565.5,0.00014656,2]
[421104386,1777049447137,-1384.622,0.00014725,2]
[421104388,1777049447749,-644.0,0.00014725,2]
[421104389,1777049447805,-12599.999976,0.00014725,2]
[421104447,1777050046712,683.04836346,7.6e-05,2]
[421104449,1777050062595,-300.0,9.999e-05,2]
[421104450,1777050062646,-450.747,0.0001,2]
[421104452,1777050091818,-300.0,0.0001,2]
[421104460,1777050460870,500.0,9.301e-05,2]
[421104462,1777050571000,153239.0,9e-05,2]
[421104559,1777050638193,-5000.0,9.698e-05,2]
[421104560,1777050638206,-556.0,9.698e-05,2]
[421104561,1777050638219,-819.29018436,9.795e-05,2]
[421104562,1777050638236,-380.70981564,9.795e-05,2]
[421104563,1777050638247,-300.0,9.796e-05,2]
[421104564,1777050638258,-217.11282731,9.797e-05,2]
[421104565,1777050638268,-300.0,9.896e-05,2]
[421104566,1777050638278,-300.0,9.896e-05,2]
[421104567,1777050638288,-300.0,9.896e-05,2]
[421104568,1777050638298,-300.0,9.896e-05,2]
[421104569,1777050638311,-500.0,9.995e-05,2]
[421104570,1777050638323,-500.0,9.995e-05,2]
[421104571,1777050638333,-500.0,9.995e-05,2]
[421104572,1777050638343,-289.90980396,9.995e-05,2]
[421104573,1777050638353,-500.0,9.995e-05,2]
[421104574,1777050638365,-307.58433404,9.995e-05,2]
[421104575,1777050638376,-500.0,9.995e-05,2]
[421104576,1777050638388,-500.0,9.995e-05,2]
[421104577,1777050638401,-500.0,9.995e-05,2]
[421104578,1777050638412,-500.0,9.995e-05,2]
[421104579,1777050638423,-500.0,9.995e-05,2]
[421104580,1777050638434,-500.0,9.995e-05,2]
[421104581,1777050638444,-500.0,9.995e-05,2]
[421104582,1777050638455,-500.0,9.995e-05,2]
[421104583,1777050638465,-599.09808313,9.995e-05,2]
[421104584,1777050638475,-500.0,9.995e-05,2]
[421104585,1777050638486,-500.0,9.995e-05,2]
[421104586,1777050638500,-500.0,9.995e-05,2]
[421104587,1777050638510,-500.0,9.995e-05,2]
[421104588,1777050638525,-500.0,9.995e-05,2]
[421104589,1777050638535,-500.0,9.995e-05,2]
[421104590,1777050638546,-500.0,9.995e-05,2]
[421104591,1777050638556,-500.0,9.995e-05,2]
[421104592,1777050638566,-500.0,9.995e-05,2]
[421104593,1777050638577,-500.0,9.995e-05,2]
[421104594,1777050638587,-500.0,9.995e-05,2]
[421104595,1777050638597,-500.0,9.995e-05,2]
[421104596,1777050638608,-500.0,9.995e-05,2]
[421104597,1777050638619,-500.0,9.995e-05,2]
[421104598,1777050638629,-500.0,9.995e-05,2]
[421104599,1777050638639,-500.0,9.995e-05,2]
[421104600,1777050638650,-500.0,9.995e-05,2]
[421104601,1777050638660,-500.0,9.995e-05,2]
[421104602,1777050638672,-500.0,9.995e-05,2]
[421104603,1777050638684,-500.0,9.995e-05,2]
[421104604,1777050638695,-275.91550142,9.995e-05,2]
[421104605,1777050638705,-500.0,9.995e-05,2]
[421104606,1777050638716,-500.0,9.995e-05,2]
[421104607,1777050638727,-500.0,9.995e-05,2]
[421104608,1777050638738,-500.0,9.995e-05,2]
[421104609,1777050638750,-500.0,9.995e-05,2]
[421104610,1777050638760,-500.0,9.995e-05,2]
[421104611,1777050638770,-500.0,9.995e-05,2]
[421104612,1777050638781,-500.0,9.995e-05,2]
[421104613,1777050638792,-500.0,9.995e-05,2]
[421104614,1777050638805,-500.0,9.995e-05,2]
[421104615,1777050638818,-500.0,9.995e-05,2]
[421104616,1777050638830,-500.0,9.995e-05,2]
[421104617,1777050638842,-500.0,9.995e-05,2]
[421104618,1777050638853,-500.0,9.995e-05,2]
[421104619,1777050638864,-500.0,9.995e-05,2]
[421104620,1777050638877,-500.0,9.995e-05,2]
[421104621,1777050638888,-500.0,9.995e-05,2]
[421104622,1777050638898,-500.0,9.995e-05,2]
[421104623,1777050638910,-500.0,9.995e-05,2]
[421104624,1777050638921,-500.0,9.995e-05,2]
[421104625,1777050638932,-500.0,9.995e-05,2]
[421104626,1777050638942,-500.0,9.995e-05,2]
[421104627,1777050638954,-500.0,9.995e-05,2]
[421104628,1777050638964,-500.0,9.995e-05,2]
[421104629,1777050638974,-500.0,9.995e-05,2]
[421104630,1777050638986,-500.0,9.995e-05,2]
[421104631,1777050638996,-500.0,9.998e-05,2]
[421104632,1777050639007,-5399.63588846,0.0001,2]
[421104633,1777050639017,-291.91324354,0.0001,2]
[421104634,1777050639027,-580.08449639,0.0001,2]
[421104635,1777050639037,-24000.0,0.0001,2]
[421104636,1777050639048,-675.46889408,0.0001,2]
[421104637,1777050639059,-300.0,0.00010199,2]
[421104638,1777050639069,-300.0,0.00010199,2]
[421104639,1777050639079,-300.0,0.00010199,2]
[421104640,1777050639090,-300.0,0.00010199,2]
[421104641,1777050639100,-300.0,0.00010199,2]
[421104642,1777050639111,-300.0,0.00010199,2]
[421104643,1777050639121,-300.0,0.00010199,2]
[421104644,1777050639132,-300.0,0.00010199,2]
[421104645,1777050639143,-300.0,0.00010199,2]
[421104646,1777050639153,-300.0,0.00010199,2]
[421104647,1777050639164,-300.0,0.00010199,2]
[421104648,1777050639175,-300.0,0.00010199,2]
[421104649,1777050639185,-300.0,0.00010199,2]
[421104650,1777050639196,-300.0,0.00010199,2]
[421104651,1777050639207,-300.0,0.00010199,2]
[421104652,1777050639218,-600.0,0.00010199,2]
[421104653,1777050639228,-500.0,0.00010272,2]
[421104654,1777050639239,-500.0,0.00010546,2]
[421104655,1777050639250,-428.60686553,0.00010618,2]
[421104656,1777050639261,-1680.0,0.00010775,2]
[421104657,1777050639272,-500.0,0.0001082,2]
[421104658,1777050639283,-420.0,0.00010886,2]
[421104659,1777050639293,-152.0,0.00010977,7]
[421104660,1777050639303,-152.0,0.00010988,7]
[421104661,1777050639315,-500.0,0.00011094,2]
[421104662,1777050639325,-252.91,0.00011205,2]
[421104663,1777050639336,-720.0,0.00011219,2]
[421104664,1777050639346,-288.96,0.00011221,2]
[421104665,1777050639357,-283.09,0.00011531,2]
[421104666,1777050639367,-256.19313622,0.00011797,2]
[421104667,1777050639378,-2351.0,0.00011852,2]
[421104668,1777050639388,-169.85,0.00011888,2]
[421104669,1777050639399,-587.0,0.00011974,2]
[421104670,1777050639409,-500.0,0.00012007,2]
[421104671,1777050639419,-490.18134032,0.00012299,2]
[421104672,1777050639429,-2033.0,0.000123,2]
[421104673,1777050639440,-864.0,0.00012341,2]
[421104674,1777050639450,-11775.51858528,0.000125,2]
[421104675,1777050639460,-1135.18361812,0.000129,2]
[421104676,1777050639471,-1135.18361807,0.000129,2]
[421104677,1777050639482,-250.0,0.00012944,2]
[421104678,1777050639492,-1135.18361807,0.00012989,2]
[421104679,1777050639504,-3292.0,0.00013037,2]
[421104680,1777050639515,-568.0,0.00013172,2]
[421104681,1777050639526,-1000.0,0.00013575,2]
[421104682,1777050639536,-187.66,0.00013641,2]
[421104683,1777050639546,-1047.13,0.00013698,2]
[421104684,1777050639557,-1047.13,0.00013698,2]
[421104685,1777050639568,-1047.13,0.00013698,2]
[421104686,1777050639578,-1047.13,0.00013698,2]
[421104687,1777050639589,-1047.13,0.00013698,2]
[421104688,1777050639599,-845.45,0.00013698,2]
[421104689,1777050639611,-845.45,0.00013698,2]
[421104690,1777050639621,-845.45,0.00013698,2]
[421104691,1777050639632,-845.45,0.00013698,2]
[421104692,1777050639643,-845.45,0.00013698,2]
[421104693,1777050639654,-1000.0,0.00013699,2]
[421104694,1777050639664,-195.36,0.00013771,2]
[421104695,1777050639675,-295.27344514,0.00013797,2]
[421104696,1777050639686,-160.0,0.00013995,2]
[421104697,1777050639696,-160.0,0.00013995,2]
[421104698,1777050639707,-180.0,0.00013995,2]
[421104699,1777050639717,-211.01,0.00014037,2]
[421104700,1777050639728,-1313.2409697,0.00014175,2]
[421104701,1777050639738,-575.4000063,0.00014274,2]
[421104703,1777050639749,-581.97,0.00014274,2]
[421104705,1777050639760,-502.00598382,0.00014274,2]
[421104706,1777050639771,-538.17425649,0.00014274,2]
[421104707,1777050639781,-2553.65,0.00014274,2]
[421104708,1777050639792,-500.0,0.00014274,2]
[421104709,1777050639803,-500.0,0.00014274,2]
[421104710,1777050639814,-1929.2,0.00014274,2]
[421104711,1777050639825,-500.0,0.00014274,2]
[421104712,1777050639835,-500.0,0.00014274,2]
[421104713,1777050639845,-764.8,0.00014274,2]
[421104714,1777050639856,-3184.17637997,0.00014275,2]
[421104715,1777050639867,-157.273787,0.00014275,2]
[421104716,1777050639877,-151.535441,0.00014275,2]
[421104717,1777050639888,-330.0,0.00014341,2]
[421104718,1777050639898,-581.97,0.00014373,2]
[421104719,1777050639909,-2553.65,0.00014373,2]
[421104720,1777050639919,-500.0,0.00014373,2]
[421104721,1777050639930,-500.0,0.00014373,2]
[421104722,1777050639941,-1929.2,0.00014373,2]
[421104723,1777050639951,-195.8558302,0.00014373,2]
[421104724,1777050639962,-151.0,0.00014373,2]
[421104725,1777050639973,-151.0,0.00014373,2]
[421104726,1777050639983,-151.0,0.00014373,2]
[421104727,1777050639994,-151.0,0.00014373,2]
[421104728,1777050640005,-151.0,0.00014373,2]
[421104729,1777050640015,-500.0,0.00014373,2]
[421104730,1777050640026,-151.0,0.00014373,2]
[421104731,1777050640036,-151.0,0.00014373,2]
[421104732,1777050640047,-151.0,0.00014373,2]
[421104733,1777050640057,-151.0,0.00014373,2]
[421104734,1777050640068,-167.191274,0.00014373,2]
[421104735,1777050640079,-167.191274,0.00014373,2]
[421104736,1777050640091,-167.191274,0.00014373,2]
[421104737,1777050640101,-167.191274,0.00014373,2]
[421104738,1777050640112,-275.200452,0.00014373,2]
[421104739,1777050640124,-275.200452,0.00014373,2]
[421104740,1777050640134,-275.200452,0.00014373,2]
[421104741,1777050640146,-275.200452,0.00014373,2]
[421104742,1777050640158,-764.8,0.00014373,2]
[421104743,1777050640169,-581.97,0.00014374,2]
[421104744,1777050640179,-2553.65,0.00014374,2]
[421104745,1777050640190,-500.0,0.00014374,2]
[421104746,1777050640201,-500.0,0.00014374,2]
[421104747,1777050640211,-1929.2,0.00014374,2]
[421104748,1777050640222,-1047.13,0.00014374,2]
[421104749,1777050640232,-845.45,0.00014374,2]
[421104750,1777050640243,-500.0,0.00014374,2]
[421104751,1777050640254,-764.8,0.00014374,2]
[421104752,1777050640265,-4407.66156394,0.00014375,2]
[421104753,1777050640276,-232.34,0.00014399,2]
[421104754,1777050640287,-581.97,0.00014499,2]
[421104755,1777050640297,-2553.65,0.00014499,2]
[421104756,1777050640307,-500.0,0.00014499,2]
[421104757,1777050640318,-500.0,0.00014499,2]
[421104758,1777050640329,-1929.2,0.00014499,2]
[421104759,1777050640339,-1047.13,0.00014499,2]
[421104760,1777050640350,-845.45,0.00014499,2]
[421104761,1777050640361,-500.0,0.00014499,2]
[421104762,1777050640372,-764.8,0.00014499,2]
[421104763,1777050640382,-6926.04720053,0.000145,2]
[421104764,1777050640393,-6779.49910699,0.000145,2]
[421104765,1777050640404,-5593.58033543,0.000145,2]
[421104766,1777050640415,-1135.18361807,0.00014535,2]
[421104767,1777050640425,-441.93,0.00014557,2]